bitfinex-derivatives/quotes_ETHF0:USTF0_20260119
["timestamp","ask_amount","ask_price","bid_price","bid_amount"]
[1768839012744,0.91397681,3215.2,3214.4,0.15563]
[1768839012942,0.91397681,3215.1,3214.4,0.15563]
[1768839013142,1.67683915,3215.6,3214.4,0.15563]
[1768839013446,0.9139578,3215.5,3214.4,0.15563]
[1768839013740,0.9139578,3215.4,3214.4,0.15563]
[1768839014042,0.9139578,3215.3,3214.4,0.15563]
[1768839014242,0.9139578,3215.2,3214.4,0.15563]
[1768839014442,0.9139578,3215.1,3214.4,0.15563]
[1768839014645,1.81678768,3215.6,3214.4,0.15563]
[1768839014844,1.05255269,3215.5,3214.4,0.15563]
[1768839015036,0.91260416,3215.4,3214.4,0.15563]
[1768839026143,0.91260416,3215.3,3214.5,0.13987118]
[1768839026342,1.67683915,3215.8,3214.5,0.13987118]
[1768839026543,0.91231518,3215.7,3214.5,0.13987118]
[1768839026746,0.91231518,3215.6,3214.5,0.13987118]
[1768839026938,0.91231518,3215.5,3214.5,0.13987118]
[1768839027141,0.91231518,3215.4,3214.5,0.13987118]
[1768839027440,0.91231518,3215.3,3214.5,0.13987118]
[1768839027637,1.67683915,3215.8,3214.5,0.13987118]
[1768839027842,1.67683915,3215.8,3214.4,0.15563]
[1768839027843,1.0549105,3215.7,3214.4,0.15563]
[1768839028051,1.0549105,3215.6,3214.4,0.15563]
[1768839028251,0.91226089,3215.5,3214.4,0.15563]
[1768839028653,1.0549105,3215.5,3214.4,0.15563]
[1768839028844,0.91226089,3215.4,3214.4,0.15563]
[1768839029137,0.91226089,3215.3,3214.4,0.15563]
[1768839029339,0.91226089,3215.2,3214.4,0.15563]
[1768839029543,0.14264961,3215.5,3214.4,0.15563]
[1768839029744,1.05486797,3215.4,3214.1,0.853]
[1768839029951,0.91221836,3215.3,3214.1,0.853]
[1768839030151,0.91221836,3215.2,3214.1,0.853]
[1768839030346,0.91221836,3215.1,3214.1,0.853]
[1768839030546,0.14264961,3215.4,3214.1,0.853]
[1768839030746,0.91219932,3215.3,3214.1,0.853]
[1768839030946,0.91219932,3215.2,3214.1,0.853]
[1768839031147,0.91219932,3215.1,3214.1,0.99287118]
[1768839031347,0.91248747,3215.0,3214.1,0.99287118]
[1768839031547,1.67683915,3215.6,3214.1,0.99287118]
[1768839031852,0.91248529,3215.5,3214.2,0.853]
[1768839032054,0.91248529,3215.4,3214.2,0.853]
[1768839032253,0.91248529,3215.3,3214.2,0.853]
[1768839032454,0.91248529,3215.2,3214.2,0.853]
[1768839032756,0.91248529,3215.1,3214.2,0.853]
[1768839032950,0.91275766,3215.0,3214.2,0.853]
[1768839033148,1.67683915,3215.6,3214.2,0.853]
[1768839033346,0.91275688,3215.5,3214.2,0.853]
[1768839033662,0.91275688,3215.4,3214.4,0.29550118]
[1768839033850,0.91275688,3215.3,3214.4,0.29550118]
[1768839034048,0.91275688,3215.2,3214.5,0.13987118]
[1768839034245,1.67683915,3215.8,3214.5,0.13987118]
[1768839034949,2.589913,3215.8,3214.5,0.13987118]
[1768839035160,0.91307385,3215.7,3214.5,0.13987118]
[1768839035350,0.91307385,3215.6,3214.5,0.13987118]
[1768839035552,0.91307385,3215.5,3214.6,0.15562]
[1768839035755,0.91307385,3215.4,3214.6,1.58670246]
[1768839035956,1.67683915,3215.9,3214.6,1.58670246]
[1768839036158,2.59014051,3215.9,3214.6,1.58670246]
[1768839036460,0.91330136,3215.8,3214.6,1.58670246]
[1768839036756,0.91330136,3215.7,3214.8,0.13987118]
[1768839036954,0.91330136,3215.6,3214.8,0.13987118]
[1768839037151,0.00365547,3216.0,3214.8,0.13987118]
[1768839037356,0.91326078,3215.9,3214.8,0.13987118]
[1768839037554,0.91326078,3215.8,3214.8,0.13987118]
[1768839037752,0.91326078,3215.7,3214.8,0.13987118]
[1768839038056,0.00365547,3216.0,3214.8,0.13987118]
[1768839038249,0.91293977,3215.9,3214.8,0.13987118]
[1768839038453,0.91293977,3215.8,3214.7,0.15561]
[1768839038752,0.91293977,3215.7,3214.7,0.15561]
[1768839038952,0.91293977,3215.6,3214.7,0.15561]
[1768839039153,0.00365547,3216.0,3214.7,0.15561]
[1768839039455,0.91273893,3215.9,3214.7,0.15561]
[1768839039662,0.91273893,3215.8,3214.7,0.15561]
[1768839039958,0.91273893,3215.7,3214.7,0.15561]
[1768839040156,0.91273893,3215.6,3214.7,0.15561]
[1768839040356,0.00365547,3216.0,3214.7,0.15561]
[1768839040557,0.91248387,3215.9,3214.7,0.15561]
[1768839040756,0.91248387,3215.8,3214.7,0.15561]
[1768839041056,0.91248387,3215.7,3214.7,0.15561]
[1768839041256,0.91248387,3215.6,3214.7,0.15561]
[1768839041456,0.00365547,3216.0,3214.7,0.15561]
[1768839041663,0.91238616,3215.9,3214.7,0.15561]
[1768839041859,0.91238616,3215.8,3214.7,0.15561]
[1768839042054,0.91238616,3215.7,3214.7,0.15561]
[1768839042252,0.91238616,3215.6,3214.7,0.15561]
[1768839042453,0.00365547,3216.0,3214.7,0.15561]
[1768839042654,0.9122719,3215.9,3214.7,0.15561]
[1768839042950,0.9122719,3215.8,3214.7,0.15561]
[1768839043156,0.9122719,3215.7,3214.7,0.15561]
[1768839043364,0.00365547,3216.0,3214.8,0.15561]
[1768839043561,0.91220072,3215.9,3214.8,0.15561]
[1768839043762,0.91220072,3215.8,3214.8,0.15561]
[1768839043963,0.91220072,3215.7,3214.8,0.15561]
[1768839044263,0.00365547,3216.0,3214.8,0.15561]
[1768839044465,0.91286961,3215.9,3214.8,0.15561]
[1768839044657,0.91286961,3215.8,3214.8,0.15561]
[1768839044859,0.91286961,3215.7,3214.8,0.15561]
[1768839045059,0.00365547,3216.0,3214.8,0.15561]
[1768839045263,0.91286852,3215.9,3214.8,0.15561]
[1768839045562,0.91286852,3215.8,3214.8,0.15561]
[1768839045760,0.91286852,3215.7,3214.8,0.15561]
[1768839045960,0.00365547,3216.0,3214.8,0.15561]
[1768839046163,0.91281947,3215.9,3214.8,0.15561]
[1768839046459,0.91281947,3215.8,3214.8,0.15561]
[1768839046760,0.91281947,3215.7,3214.8,0.15561]
[1768839046956,0.00365547,3216.0,3214.8,0.15561]
[1768839047157,0.91278206,3215.9,3214.8,0.15561]
[1768839047356,0.91278206,3215.8,3214.8,0.15561]
[1768839047558,0.00365547,3216.0,3214.8,0.15561]
[1768839047559,0.91278206,3215.7,3214.8,0.15561]
[1768839047760,0.00365547,3216.0,3214.8,0.15561]
[1768839047950,0.91275505,3215.9,3214.8,0.15561]
[1768839048155,0.91275505,3215.8,3214.8,0.15561]
[1768839048369,0.91275505,3215.7,3214.8,0.15561]
[1768839048664,0.00365547,3216.0,3214.8,0.15561]
[1768839048857,0.91262844,3215.9,3214.8,0.15561]
[1768839049058,0.91262844,3215.8,3214.8,0.15561]
[1768839049266,0.91262844,3215.7,3214.8,0.15561]
[1768839049566,0.00365547,3216.0,3214.8,0.15561]
[1768839049759,0.91243186,3215.9,3214.8,0.15561]
[1768839049958,0.91243186,3215.8,3214.8,0.15561]
[1768839050161,0.91243186,3215.7,3214.8,0.15561]
[1768839050362,0.00365547,3216.0,3214.8,0.15561]
[1768839050562,0.91243957,3215.9,3214.8,0.15561]
[1768839050762,0.91243957,3215.8,3214.8,0.15561]
[1768839050962,0.00365547,3216.0,3214.8,0.15561]
[1768839050963,0.91243957,3215.7,3214.8,0.15561]
[1768839051164,0.00365547,3216.0,3214.8,0.15561]
[1768839051365,0.91244234,3215.9,3214.8,0.15561]
[1768839051565,0.91244234,3215.8,3214.8,0.15561]
[1768839051862,0.91244234,3215.7,3214.8,0.15561]
[1768839052168,0.00365547,3216.0,3214.8,0.15561]
[1768839052368,0.91245988,3215.9,3214.8,0.15561]
[1768839052567,0.91245988,3215.8,3214.8,0.15561]
[1768839052769,0.91245988,3215.7,3214.8,0.15561]
[1768839052971,0.00365547,3216.0,3214.8,0.15561]
[1768839053159,0.91248965,3215.9,3214.8,0.15561]
[1768839053361,0.91248965,3215.8,3214.8,0.15561]
[1768839053561,0.91248965,3215.7,3214.8,0.15561]
[1768839053772,0.00365547,3216.0,3214.8,0.15561]
[1768839054066,0.91252976,3215.9,3214.8,0.15561]
[1768839054369,0.91252976,3215.8,3214.8,0.15561]
[1768839054568,0.00365547,3216.0,3214.8,0.29875237]
[1768839054764,0.91258686,3215.9,3214.8,0.29875237]
[1768839057180,0.91258686,3215.9,3214.9,0.15561]
[1768839058885,0.91258686,3215.9,3215.1,0.1556]
[1768839061382,0.91258686,3215.9,3215.2,0.15559]
[1768839064293,0.91258686,3215.9,3215.3,0.15559]
[1768839065699,0.91258686,3215.9,3215.4,0.15558]
[1768839065893,1.67683915,3216.5,3215.6,1.44620658]
[1768839066197,1.67683915,3216.6,3215.6,1.44620658]
[1768839066499,1.67683915,3216.6,3215.6,0.15557]
[1768839067088,1.68070738,3216.6,3215.6,0.1589147]
[1768839067297,1.68070738,3216.6,3215.7,0.15557]
[1768839068300,1.68070738,3216.6,3215.8,0.15556]
[1768839068496,2.23060836,3217.3,3216.4,1.29063658]
[1768839068696,5.40451694,3217.4,3216.2,1.29063658]
[1768839069001,1.42690858,3217.0,3216.1,0.15555]
[1768839069595,1.43075664,3217.0,3216.1,0.15555]
[1768839071795,0.14012006,3217.0,3216.1,0.15555]
[1768839071996,0.00384806,3217.0,3216.1,0.15555]
[1768839073105,0.00384806,3217.0,3216.1,1.44618658]
[1768839073303,0.00384806,3217.0,3215.6,0.14648707]
[1768839073503,0.00384806,3217.0,3215.7,1.29063658]
[1768839076798,0.00384806,3217.0,3215.7,1.43377895]
[1768839079006,0.00384806,3217.0,3215.8,0.853]
[1768839082207,1.29063658,3216.5,3215.8,0.853]
[1768839083708,0.13706968,3216.8,3215.8,0.853]
[1768839083907,1.29063658,3216.6,3215.8,0.853]
[1768839084404,1.29063658,3216.8,3215.8,0.853]
[1768839084604,0.89658095,3216.7,3215.6,0.0033447]
[1768839084804,1.29063658,3216.8,3215.6,0.0033447]
[1768839085110,0.89657817,3216.7,3215.6,0.0033447]
[1768839085310,1.29063658,3216.8,3215.6,0.0033447]
[1768839085510,0.89671828,3216.7,3215.6,0.0033447]
[1768839085711,0.00384806,3217.0,3215.6,0.0033447]
[1768839085712,1.29063658,3216.9,3215.6,0.0033447]
[1768839086015,0.89671583,3216.8,3215.6,1.29398128]
[1768839086218,1.29063658,3216.9,3215.6,1.29398128]
[1768839086407,0.89675338,3216.8,3215.6,1.29398128]
[1768839086604,0.89687064,3216.7,3215.6,1.29398128]
[1768839086809,1.29063658,3216.9,3215.6,1.29398128]
[1768839087002,0.89687098,3216.8,3215.6,1.29398128]
[1768839087206,0.89687098,3216.7,3215.6,1.29398128]
[1768839087406,1.29063658,3216.9,3215.6,1.29398128]
[1768839087617,0.89703078,3216.8,3215.6,1.29398128]
[1768839087813,0.89703078,3216.7,3215.6,1.29398128]
[1768839088015,1.29063658,3216.9,3215.6,1.29398128]
[1768839088216,0.89703099,3216.8,3215.6,1.29398128]
[1768839088411,0.89703099,3216.7,3215.6,1.29398128]
[1768839088611,1.29063658,3216.9,3215.6,1.29398128]
[1768839088914,0.89721653,3216.8,3215.6,1.29398128]
[1768839089110,0.89721653,3216.7,3215.6,1.29398128]
[1768839089319,1.29063658,3216.9,3215.6,0.0033447]
[1768839089616,0.89737837,3216.8,3215.6,0.0033447]
[1768839089815,0.89737837,3216.7,3215.6,0.0033447]
[1768839090016,1.29063658,3216.9,3215.6,0.0033447]
[1768839090217,0.8973802,3216.8,3215.6,0.0033447]
[1768839090423,0.8973802,3216.7,3215.6,0.0033447]
[1768839090609,1.29063658,3216.9,3215.6,0.0033447]
[1768839090809,0.89742501,3216.8,3215.6,0.0033447]
[1768839091017,0.89742501,3216.7,3215.6,0.0033447]
[1768839091318,0.89759179,3216.6,3215.6,0.0033447]
[1768839091617,1.29063658,3216.9,3215.6,0.0033447]
[1768839091819,0.897591,3216.8,3215.6,0.0033447]
[1768839092019,0.897591,3216.7,3215.6,0.0033447]
[1768839092213,0.897591,3216.6,3215.6,0.0033447]
[1768839092419,1.29063658,3216.9,3215.6,0.0033447]
[1768839092721,0.89777782,3216.8,3215.6,0.0033447]
[1768839092911,0.89777782,3216.7,3215.6,0.0033447]
[1768839093112,0.89777782,3216.6,3215.6,0.0033447]
[1768839093313,1.29063658,3216.9,3215.6,0.0033447]
[1768839093513,0.8979938,3216.8,3215.6,0.0033447]
[1768839093815,2.18863038,3216.7,3215.6,0.0033447]
[1768839094016,1.29063658,3216.5,3215.6,0.0033447]
[1768839095925,1.29063658,3216.0,3215.6,0.0033447]
[1768839096224,1.29063658,3216.2,3215.4,0.853]
[1768839096521,1.29063658,3216.2,3215.0,0.853]
[1768839097024,1.29063658,3216.2,3215.0,0.85652309]
[1768839097220,1.29063658,3216.4,3215.0,1.01212309]
[1768839097416,0.8985449,3216.3,3215.0,1.01212309]
[1768839097616,0.8985449,3216.2,3215.0,1.14559675]
[1768839097817,1.29063658,3216.4,3215.0,1.14559675]
[1768839098017,0.89854446,3216.3,3215.0,1.14559675]
[1768839098216,0.89854446,3216.2,3215.0,1.14559675]
[1768839098416,1.29063658,3216.4,3215.0,1.14559675]
[1768839098618,0.89857971,3216.3,3215.0,1.14559675]
[1768839098917,0.89857971,3216.2,3215.0,1.14559675]
[1768839099119,1.29063658,3216.4,3215.0,1.14559675]
[1768839099318,0.89858352,3216.3,3215.0,1.14559675]
[1768839099519,0.89858352,3216.2,3215.0,1.14559675]
[1768839099722,1.29063658,3216.4,3215.0,1.14559675]
[1768839099919,0.89846192,3216.3,3215.0,1.14559675]
[1768839100120,0.89846192,3216.2,3215.0,1.14559675]
[1768839100323,1.29063658,3216.4,3215.0,1.14559675]
[1768839100525,0.89836154,3216.3,3215.0,1.14559675]
[1768839100826,0.89836154,3216.2,3215.2,0.15559]
[1768839101027,1.29063658,3216.4,3215.2,0.15559]
[1768839101227,0.89836229,3216.3,3215.2,0.15559]
[1768839101427,0.89836229,3216.2,3215.2,0.15559]
[1768839101726,1.29063658,3216.4,3215.2,0.15559]
[1768839101928,0.89828141,3216.3,3215.3,0.15559]
[1768839102129,0.89828141,3216.2,3215.3,0.15559]
[1768839102422,1.29063658,3216.4,3215.3,0.15559]
[1768839102625,0.89821986,3216.3,3215.3,0.15559]
[1768839102825,0.89821986,3216.2,3215.3,0.15559]
[1768839103122,0.13706968,3216.5,3215.1,2.28408203]
[1768839103324,0.89822964,3216.4,3215.5,0.15558]
[1768839103523,0.89822964,3216.3,3215.5,0.15558]
[1768839103720,1.29063658,3216.6,3215.5,0.15558]
[1768839103920,0.89821209,3216.5,3215.5,0.15558]
[1768839104226,0.89821209,3216.4,3215.5,0.15558]
[1768839104415,0.89821209,3216.3,3215.5,0.15558]
[1768839104619,1.29063658,3216.6,3215.5,0.15558]
[1768839104849,0.90029325,3216.5,3215.5,0.15558]
[1768839105019,0.90029325,3216.4,3215.5,0.15558]
[1768839105230,0.90029325,3216.3,3215.5,0.15558]
[1768839105529,1.29063658,3216.6,3215.5,0.15558]
[1768839105723,0.90029469,3216.5,3215.5,0.15558]
[1768839105924,0.90029469,3216.4,3215.5,0.15558]
[1768839106227,0.90029469,3216.3,3215.5,0.15558]
[1768839106427,0.90029469,3216.2,3215.5,0.15558]
[1768839106623,1.29063658,3216.6,3215.5,0.15558]
[1768839106828,0.90030732,3216.5,3215.5,0.15558]
[1768839107020,0.90030732,3216.4,3215.5,0.15558]
[1768839107216,0.90030732,3216.3,3215.5,0.15558]
[1768839107417,0.90030732,3216.2,3215.5,0.15558]
[1768839107619,1.29063658,3216.6,3215.5,0.15558]
[1768839107831,0.90033477,3216.5,3215.5,0.15558]
[1768839108022,0.90033477,3216.4,3215.5,0.15558]
[1768839108221,0.90033477,3216.3,3215.5,0.15558]
[1768839108422,0.90033477,3216.2,3215.5,0.15558]
[1768839108629,1.29063658,3216.6,3215.5,0.15558]
[1768839108930,0.90037593,3216.5,3215.5,0.15558]
[1768839109128,0.90037593,3216.4,3215.5,0.15558]
[1768839109333,0.90037593,3216.3,3215.5,0.15558]
[1768839109630,0.90037593,3216.2,3215.5,0.15558]
[1768839109830,1.29063658,3216.6,3215.5,0.15558]
[1768839110034,0.90043093,3216.5,3215.5,0.15558]
[1768839110232,0.90043093,3216.4,3215.5,0.15558]
[1768839112628,0.90043093,3216.4,3215.2,0.853]
[1768839112834,1.29063658,3216.3,3215.2,0.853]
[1768839113026,0.90043093,3216.2,3215.2,0.853]
[1768839114033,0.90043093,3216.2,3215.1,0.99344545]
[1768839115437,0.90043093,3216.2,3215.1,1.14904545]
[1768839116227,1.29063658,3216.5,3215.1,1.14904545]
[1768839116427,0.90078399,3216.4,3215.2,1.44622658]
[1768839116630,0.90078399,3216.3,3215.2,1.44622658]
[1768839116832,0.90078399,3216.2,3215.2,1.44622658]
[1768839117033,1.29063658,3216.5,3215.2,1.44622658]
[1768839117232,0.90078454,3216.4,3215.2,1.44622658]
[1768839117432,0.90078454,3216.3,3215.2,1.44622658]
[1768839117633,0.90078454,3216.2,3215.2,1.44622658]
[1768839117933,1.29063658,3216.5,3215.2,1.44622658]
[1768839118239,0.9008376,3216.4,3215.2,1.44622658]
[1768839118435,0.9008376,3216.3,3215.2,1.44622658]
[1768839118740,0.9008376,3216.2,3215.2,1.44622658]
[1768839119049,1.29063658,3216.5,3215.3,0.15559]
[1768839119237,0.9009025,3216.4,3215.3,0.15559]
[1768839119440,0.9009025,3216.3,3215.3,0.15559]
[1768839119631,0.9009025,3216.2,3215.3,0.15559]
[1768839119937,1.29063658,3216.5,3215.4,0.15558]
[1768839120240,0.90097989,3216.4,3215.4,0.15558]
[1768839120439,0.90097989,3216.3,3215.4,0.15558]
[1768839120734,0.90097989,3216.2,3215.4,0.15558]
[1768839120934,1.29063658,3216.5,3215.4,0.15558]
[1768839121139,2.19167804,3216.4,3215.4,0.15558]
[1768839121338,0.90104146,3216.3,3215.4,0.15558]
[1768839122151,1.29063658,3216.2,3215.4,0.15558]
[1768839122339,0.90104146,3216.1,3215.4,0.15558]
[1768839122539,0.90110271,3216.0,3215.4,0.15558]
[1768839122843,1.29063658,3216.2,3215.0,0.00352309]
[1768839123138,0.90109284,3216.1,3215.0,0.00352309]
[1768839123337,0.90109284,3216.0,3215.0,0.00352309]
[1768839123541,1.29063658,3216.2,3215.4,0.15558]
[1768839123732,0.90121051,3216.1,3215.4,0.15558]
[1768839123934,0.90121051,3216.0,3215.4,0.15558]
[1768839124136,0.90121051,3215.9,3215.4,0.15558]
[1768839124332,1.29063658,3216.2,3215.4,0.15558]
[1768839124646,0.90128293,3216.1,3215.4,0.15558]
[1768839124842,0.90128293,3216.0,3215.0,0.00352309]
[1768839125036,0.90128293,3215.9,3215.0,0.00352309]
[1768839125339,0.90128293,3215.8,3215.0,0.00352309]
[1768839125642,0.90128293,3215.7,3215.0,0.00352309]
[1768839125836,1.8167305,3216.3,3215.0,0.15912309]
[1768839126034,0.90107617,3216.2,3215.0,0.15912309]
[1768839126234,0.90107617,3216.1,3215.0,0.15912309]
[1768839126434,0.90107617,3216.0,3215.0,0.15912309]
[1768839126634,1.8167305,3216.3,3215.0,0.15912309]
[1768839126635,0.90107617,3215.9,3215.0,0.15912309]
[1768839126842,0.90107617,3215.8,3215.0,0.15912309]
[1768839127044,0.14333852,3216.3,3215.0,0.15912309]
[1768839127243,0.900555,3216.2,3215.0,0.15912309]
[1768839127444,0.900555,3216.1,3215.0,0.15912309]
[1768839127745,0.900555,3216.0,3215.0,0.15912309]
[1768839127951,0.900555,3215.9,3215.0,0.15912309]
[1768839128146,0.900555,3215.8,3215.0,0.15912309]
[1768839128340,0.14333852,3216.3,3215.0,0.15912309]
[1768839128647,0.90023989,3216.2,3215.0,0.15912309]
[1768839128946,0.90023989,3216.1,3215.0,0.15912309]
[1768839129148,0.90023989,3216.0,3215.0,0.15912309]
[1768839129338,0.90023989,3215.9,3215.0,0.15912309]
[1768839129538,0.90023989,3215.8,3215.0,0.15912309]
[1768839129847,0.14333852,3216.3,3215.0,0.15912309]
[1768839130047,0.90013504,3216.2,3215.0,0.15912309]
[1768839130241,0.90013504,3216.1,3215.0,0.15912309]
[1768839130442,0.90013504,3216.0,3215.0,0.15912309]
[1768839130642,0.90013504,3215.9,3215.0,0.15912309]
[1768839130834,0.90013504,3215.8,3215.0,0.15912309]
[1768839131039,0.14333852,3216.3,3215.0,0.15912309]
[1768839131339,0.90004563,3216.2,3215.0,0.15912309]
[1768839131648,0.90004563,3216.1,3215.0,0.15912309]
[1768839131849,0.90004563,3216.0,3215.0,0.15912309]
[1768839132050,0.90004563,3215.9,3215.0,0.15912309]
[1768839132248,0.90004563,3215.8,3215.0,0.15912309]
[1768839132450,0.14333852,3216.3,3215.0,0.15912309]
[1768839132654,0.89991039,3216.2,3215.0,0.15912309]
[1768839132852,0.89991039,3216.1,3215.0,0.15912309]
[1768839133048,0.89991039,3216.0,3215.0,0.15912309]
[1768839133246,1.67339198,3216.6,3215.2,0.15559]
[1768839133444,0.89994598,3216.5,3215.2,0.29014569]
[1768839133750,0.89994598,3216.4,3215.2,0.29014569]
[1768839133951,0.89994598,3216.3,3215.2,0.29014569]
[1768839134254,0.89994598,3216.2,3215.2,0.29014569]
[1768839134453,0.89994598,3216.1,3215.2,0.29014569]
[1768839134650,1.8167305,3216.7,3215.2,0.29014569]
[1768839134851,2.57692161,3216.6,3215.2,0.29014569]
[1768839135552,0.14333852,3216.5,3215.2,0.15559]
[1768839135855,0.90352963,3216.4,3215.2,0.15559]
[1768839140460,0.90352963,3216.4,3215.2,1.00859]
[1768839141165,0.90352963,3216.4,3215.4,0.13455569]
[1768839141355,0.90352963,3216.3,3215.4,0.13455569]
[1768839141557,0.90352963,3216.2,3215.3,0.15559]
[1768839141756,0.90352963,3216.1,3215.3,0.15559]
[1768839141963,1.8167305,3216.6,3215.3,0.15559]
[1768839142156,0.90368754,3216.5,3215.3,0.15559]
[1768839142358,0.90368754,3216.4,3215.3,0.15559]
[1768839142661,0.90368754,3216.3,3215.3,0.15559]
[1768839142964,0.90368754,3216.2,3215.3,0.15559]
[1768839143169,0.90368754,3216.1,3215.3,0.15559]
[1768839143467,1.8167305,3216.6,3215.3,0.15559]
[1768839143671,0.90379057,3216.5,3215.3,0.15559]
[1768839143868,0.90379057,3216.4,3215.3,0.15559]
[1768839144167,0.90379057,3216.3,3215.3,0.15559]
[1768839144363,0.90379057,3216.2,3215.3,0.15559]
[1768839144566,0.90379057,3216.1,3215.3,0.15559]
[1768839144865,1.8167305,3216.6,3215.3,0.15559]
[1768839145067,0.90381853,3216.5,3215.3,0.15559]
[1768839145259,0.90381853,3216.4,3215.3,0.15559]
[1768839145460,0.90381853,3216.3,3215.3,0.15559]
[1768839145662,0.90381853,3216.2,3215.3,0.15559]
[1768839145969,0.90381853,3216.1,3215.3,0.15559]
[1768839146171,1.67339198,3216.7,3215.4,0.853]
[1768839148470,1.67339198,3216.8,3215.4,0.853]
[1768839148675,2.57724738,3216.7,3215.4,1.00858]
[1768839148972,0.9038554,3216.6,3215.4,1.00858]
[1768839149268,0.9038554,3216.5,3215.4,1.00858]
[1768839149471,0.9038554,3216.4,3215.7,0.14334324]
[1768839149663,0.00384806,3217.0,3215.7,0.29891324]
[1768839149862,0.90391735,3216.9,3215.7,0.29891324]
[1768839150063,0.90391735,3216.8,3215.7,0.29891324]
[1768839150262,0.90391735,3216.7,3215.7,0.29891324]
[1768839150461,0.90391735,3216.6,3215.7,0.29891324]
[1768839150666,0.00384806,3217.0,3215.7,0.29891324]
[1768839150865,0.90363291,3216.9,3215.7,0.29891324]
[1768839151061,0.90363291,3216.8,3215.7,0.29891324]
[1768839151370,0.90363291,3216.7,3215.7,0.29891324]
[1768839151561,0.00384806,3217.0,3215.7,0.29891324]
[1768839151762,0.90338454,3216.9,3215.7,0.29891324]
[1768839151957,0.90338454,3216.8,3215.7,0.29891324]
[1768839152170,0.90338454,3216.7,3215.7,0.29891324]
[1768839152372,0.00384806,3217.0,3215.7,0.29891324]
[1768839152570,0.90319231,3216.9,3215.7,0.29891324]
[1768839152770,0.90319231,3216.8,3215.7,0.29891324]
[1768839152973,0.90319231,3216.7,3215.7,0.29891324]
[1768839153173,0.00384806,3217.0,3215.7,0.29891324]
[1768839153364,0.90301875,3216.9,3215.7,0.29891324]
[1768839153560,0.90301875,3216.8,3215.7,0.14334324]
[1768839153764,0.90301875,3216.7,3215.7,0.14334324]
[1768839153966,0.00384806,3217.0,3215.7,0.14334324]
[1768839154160,0.90299337,3216.9,3215.7,0.14334324]
[1768839154371,0.90299337,3216.8,3215.7,0.14334324]
[1768839154570,0.90299337,3216.7,3215.9,0.15556]
[1768839154771,0.00384806,3217.0,3215.9,0.15556]
[1768839154966,0.90282458,3216.9,3215.9,0.15556]
[1768839155166,0.90282458,3216.8,3215.9,0.15556]
[1768839155366,0.90282458,3216.7,3215.9,0.15556]
[1768839155574,0.00384806,3217.0,3215.9,0.15556]
[1768839155775,0.9027449,3216.9,3215.9,0.15556]
[1768839155971,0.9027449,3216.8,3215.9,0.15556]
[1768839156177,0.9027449,3216.7,3215.9,0.15556]
[1768839156375,0.00384806,3217.0,3215.9,0.15556]
[1768839156576,0.90268838,3216.9,3215.9,0.15556]
[1768839156872,0.90268838,3216.8,3215.9,0.15556]
[1768839157075,0.90268838,3216.7,3215.9,0.15556]
[1768839157268,0.00384806,3217.0,3215.9,0.15556]
[1768839157470,0.90264532,3216.9,3215.9,0.15556]
[1768839157672,0.90264532,3216.8,3215.9,0.15556]
[1768839157871,0.90264532,3216.7,3216.0,0.15555]
[1768839158075,0.00384806,3217.0,3216.0,0.15555]
[1768839158269,0.90264609,3216.9,3216.0,0.15555]
[1768839158470,0.90264609,3216.8,3216.0,0.15555]
[1768839158775,0.90262566,3216.7,3216.0,0.15555]
[1768839158972,0.00384806,3217.0,3216.0,0.15555]
[1768839159177,0.90261004,3216.9,3216.0,0.15555]
[1768839159378,0.90261004,3216.8,3216.0,0.15555]
[1768839159579,0.90261004,3216.7,3215.4,0.15558]
[1768839159780,0.13604956,3216.9,3215.4,0.15558]
[1768839159977,0.90261793,3216.8,3215.4,0.29306509]
[1768839160280,0.90261793,3216.7,3215.4,0.29306509]
[1768839160480,0.90261793,3216.6,3215.4,0.29306509]
[1768839160682,0.13604956,3216.9,3215.4,0.29306509]
[1768839160880,0.90266076,3216.8,3215.4,1.14606509]
[1768839161175,0.90266076,3216.7,3215.4,1.14606509]
[1768839161380,0.90266076,3216.6,3215.4,1.14606509]
[1768839161582,0.90266076,3216.5,3215.4,1.14606509]
[1768839161882,0.90266076,3216.4,3215.4,1.14606509]
[1768839162074,0.13604956,3216.9,3215.4,1.14606509]
[1768839162275,0.90272844,3216.8,3215.4,1.14606509]
[1768839162474,0.90272844,3216.7,3215.4,1.14606509]
[1768839162682,0.90272844,3216.6,3215.5,0.15558]
[1768839162983,0.90272844,3216.5,3215.5,0.15558]
[1768839163182,0.90272844,3216.4,3215.5,0.15558]
[1768839163382,0.13604956,3216.9,3215.5,0.15558]
[1768839163574,0.90300971,3216.8,3215.5,0.15558]
[1768839163774,0.90300971,3216.7,3215.6,0.29305509]
[1768839163975,0.90300971,3216.6,3215.6,0.29305509]
[1768839164274,0.90300971,3216.5,3215.6,0.29305509]
[1768839164475,0.90300971,3216.4,3215.6,0.29305509]
[1768839164675,0.00384806,3217.0,3215.6,0.29305509]
[1768839164974,0.90094861,3216.9,3215.6,0.29305509]
[1768839165174,0.90094861,3216.8,3215.6,0.29305509]
[1768839165374,0.90094861,3216.7,3215.6,0.29305509]
[1768839165582,0.90094861,3216.6,3215.6,0.29305509]
[1768839165783,0.90094861,3216.5,3215.6,0.29305509]
[1768839165984,0.00384806,3217.0,3215.6,0.29305509]
[1768839166186,0.90098782,3216.9,3215.6,0.29305509]
[1768839166379,0.90098782,3216.8,3215.6,0.29305509]
[1768839166578,0.90098782,3216.7,3215.6,0.29305509]
[1768839166774,0.90098782,3216.6,3215.6,0.29305509]
[1768839166975,0.90098782,3216.5,3215.6,0.29305509]
[1768839167183,0.00384806,3217.0,3215.6,0.29305509]
[1768839167377,0.90110074,3216.9,3215.6,0.29305509]
[1768839167577,0.90110074,3216.8,3215.6,0.29305509]
[1768839167778,0.90110074,3216.7,3215.6,0.29305509]
[1768839167982,0.90110074,3216.6,3215.6,0.29305509]
[1768839168182,0.90110074,3216.5,3215.6,0.29305509]
[1768839168382,0.90110074,3216.4,3215.6,0.29305509]
[1768839168683,1.67724004,3217.0,3215.6,0.29305509]
[1768839168884,0.90116969,3216.9,3215.6,0.29305509]
[1768839169081,0.90116969,3216.8,3215.6,0.29305509]
[1768839169384,0.90116969,3216.7,3215.6,0.29305509]
[1768839169686,0.90116969,3216.6,3215.6,0.29305509]
[1768839169886,0.90116969,3216.5,3215.6,0.29305509]
[1768839170086,0.90116969,3216.4,3215.6,0.29305509]
[1768839170276,1.67339198,3216.9,3215.6,0.29305509]
[1768839170672,2.57470865,3216.9,3215.6,0.29305509]
[1768839175891,2.57470865,3216.9,3215.6,0.15557]
[1768839180590,2.57470865,3216.9,3215.4,0.853]
[1768839181289,2.57470865,3216.8,3215.4,0.853]
[1768839181490,0.90131667,3216.7,3215.4,0.853]